Workbook

Sheet Hovedmeny
A1: Klassekalkulering BMWCCN 2016 TEST1
A2: TESTVERSJON | T2: TESTVERSJON
E13: BMW CCN Racing BMW Cup er egen racing serie for biler produsert av BMW (Bayerische Motoren Werke AG),og organiseres som undergruppe av BMWCCN Intensjonen med BMW Cup er at det skal være en enkel og oversiktlig serie hvor terskelen for deltakelse skal være så lav som mulig. Serien kjøres organisert som klubbracing, med utgangspunkt i og det førende prinsippet “Gentlemansracing” skal være overordnet. Platekontakt og uvøren/ufin oppførsel under løpene på bane skal søkes unngått. Mer informasjon om BMW Cup finner du på http://racing.bmwccn.no/. Spørsmål kan sendes per mail til racing@bmwccn.no

Sheet Kalkulering (hidden)
A1: =Overskrift -> Klassekalkulering BMWCCN 2016 TEST1 | F1: Spesifikasjoner | M1: Klassetilhørlighet: | O1: =Q36 -> 3 | Y1: Alle felt med denne bakgrunnsfargen kan endres.
A2: Utskrift skal alltid ligge sammen med vognbok ved løp i Corsa Italiana
A3: BIL: | G3: Spesifikasjoner for bilen | M3: Tillegg trimming motor | P3: + | Q3: =SUM(Q4:Q11) -> 0 | T3: Fordeling | U3: Reell %
M4: =INDEX(Konfigurasjon!C33:I38,TypeMotor,MotorEndring) -> Beholdt orginaloppsett | Q4: =IF(Diesel,0,IF(EttermontertTurbo,0,IF(OrgTurbo,T4,IF(SUM($T$4:$T$9)>0,$T4*$U$12/SUM($T$4:$T$9),0)))) -> 0 | T4: =IF(TypeMotor=6,IF(Org4Ventiler,INDEX(Konfigurasjon!C30:I30,1,MotorEndring),INDEX(Konfigurasjon!C29:I29,1,MotorEndring)),INDEX(Konfigurasjon!C23:I28,TypeMotor,MotorEndring)) -> 0 | U4: =IF(SUM($T$4:$T$9)>0,$T$4*$U$12/SUM($T$4:$T$9),0) -> 0
A5: STARTNUMMER: | G5: Bilens produksjonsår | J5: 2000 | M5: Byttet kammer og / eller større ventiler | P5: + | Q5: 0 | T5: =IF(KammerValgt=TRUE,Kammer,0) -> 0 | U5: =IF(SUM($T$4:$T$9)>0,$T$5*$U$12/SUM($T$4:$T$9),0) -> 0
G6: Bilens vekt (løpsklar inkl fører) | J6: 1000 | K6: kg | M6: Endret kompresjon | P6: + | Q6: 0 | T6: =IF(KompresjonValgt=TRUE,Kompresjon,0) -> 0 | U6: =IF(SUM($T$4:$T$9)>0,T6*$U$12/SUM($T$4:$T$9),0) -> 0 | Y6: En rød trekant betyr at utvidet informasjon gis om man holder musepekeren over denne.
A7: FØRER 1 | G7: Grunnbredde dekk | J7: =165+((J$6-500)/10) -> 215 | K7: mm | M7: Uorginal eksosmanifold / grenrør | P7: + | Q7: 0 | T7: =IF(ManifoldValgt=TRUE,Eksosmanifold,0) -> 0 | U7: 0
A8: FØRER 2 | G8: Dekkbredde | M8: Katalysator renset / fjernet | P8: + | Q8: 0 | T8: =IF(OrgKat=TRUE,IF(KatFjernetValgt=TRUE,KatFjernet,0),0) -> 0 | U8: 0
A9: Følgende kan gjøres uten å få effekt-tillegg: - Inntil 1 mm plansliping av topp - Bytte luftfilter - Eksosanlegg etter grenrør (fjerne kat. gir tillegg) - Letting av svinghjul - Porting av topp og kanaler | M9: Plenum volum endret / Innsugsmanifold endret | P9: + | Q9: 0 | T9: =IF(PlenumValgt,IF(Plenum=1,PlenumNA,IF(Plenum=2,PlenumTurbo,0)),0) -> 0 | U9: 0
M10: Uorginal turbo / endret kompressor driving | P10: + | Q10: 0 | T10: =IF(OrgTurbo,IF(UorgTurboValgt,UorgTurbo,0),0) -> 0 | U10: 0
G11: Orginale spesifikasjoner for motor | M11: Ombygget / større intercooler | P11: + | Q11: 0 | T11: =IF(OrgTurbo,IF(IntercoolerValgt,Intercooler,0),0) -> 0 | U11: 0
T12: =(1+T4)*(1+T5)*(1+T6)*(1+T7)*(1+T8)*(1+T9)*(1+T10)*(1+T11)-1 -> 0 | U12: =(T14-Orginaleffekt*BenyttetSlagvolum/OrgSlagvolum)/Orginaleffekt*BenyttetSlagvolum/OrgSlagvolum -> 0
G13: Orginalt slagvolum | J13: 2000 | K13: ccm | M13: Tillegg drivstoff | P13: + | Q13: =SUM(Q14:Q15) -> 0 | U13: =SUM(U4:U11) -> 0
G14: Orginaleffekt | J14: 130 | K14: hk | M14: E85 | P14: + | Q14: =IF(Diesel,0,IF(E85Valgt,IF(Turbomotor,E85Turbo,E85NA),0)) -> 0 | T14: =IF(OrgTurbo,IF(MaksGrunneffekt>TempGrunneffekt,TempGrunneffekt,MaksGrunneffekt),IF(EttermontertTurbo=TRUE,MaksGrunneffekt,Orginaleffekt*BenyttetSlagvolum/OrgSlagvolum+T12*(MaksGrunneffekt-Orginaleffekt*BenyttetSlagvolum/OrgSlagvolum)/Temp!O17)) -> 130 | W14: =Orginaleffekt*BenyttetSlagvolum/OrgSlagvolum+T12*(MaksGrunneffekt-Orginaleffekt*BenyttetSlagvolum/OrgSlagvolum)/Temp!O17 -> 130
A15: Klasseindeling | M15: Racefuel | P15: + | Q15: =IF(Diesel,0,IF(RacefuelValgt,IF(Turbomotor,RacefuelTurbo,RacefuelNA),0)) -> 0 | T15: =IF(T14+0.1<MaksGrunneffekt,"",(1+TilleggDrivstoff)*MaksGrunneffekt/BenyttetSlagvolum*1000) ->  | U15: =IF(GrenseGrunneffekt>TempGrunneffekt,"","hk/liter") ->  | W15: =MaksGrunneffekt -> 170
A16: Klasse 1 | B16: =_KL1 -> 2.5 | C16: =B17-0.01 -> 4.74 | D16: kg/hk | G16: Diesel | W16: =BenyttetSlagvolum -> 2000
A17: Klasse 2 | B17: =_KL2 -> 4.75 | C17: =B18-0.01 -> 6.99 | D17: kg/hk | G17: 4 ventiler per sylinder | M17: Utregnet grunneffekt | P17: =IF(Diesel,IF(Org4Ventiler,DieselFaktor4v*Orginaleffekt*BenyttetSlagvolum/OrgSlagvolum,DieselFaktor2v*Orginaleffekt*BenyttetSlagvolum/OrgSlagvolum),(1+TilleggDrivstoff)*T14) -> 130 | Q17: hk | W17: =OrgSlagvolum -> 2000
A18: Klasse 3 | B18: =_KL4 -> 7 | C18: & tyngre | D18: kg/hk | G18: 1 gass-spjell per sylinder | M18: =IF(T14+0.1<MaksGrunneffekt,"","Begrenset av maks effekt per liter") ->  | P18: =T15 ->  | Q18: =IF(T14+0.1<MaksGrunneffekt,"","hk/liter") ->  | U18: =INDEX(Konfigurasjon!C29:I29,1,MotorEndring) -> 0 | W18: =Temp!O17 -> 0.72380285
G19: Turbo / kompressor
G20: Levert orginalt med katalysator
A21: Klasse 1 | B21: Minimum vekt | C21: =Kl1_MinVekt+0.5 -> 366.6971831 | D21: kg inkl fører | M21: Fradrag | P21: - | Q21: =SUM(Q22:Q23) -> 0
A22: Klasse 2 | B22: Minimum vekt | C22: =Kl2_MinVekt+0.5 -> 660.0460614 | D22: kg inkl fører | M22: Dekk smalere enn grunnbredden | P22: - | Q22: =IF(DekkbreddeValgt<0,DekkbreddeValgt,0) -> 0
A23: Klasse 3 | B23: Minimum vekt | C23: =Kl3_MinVekt+0.5 -> 924.357868 | D23: kg inkl fører | G23: Endringer gjort med motor | M23: Ikke diffbrems / sperre | P23: - | Q23: =IF(DiffValgt=TRUE,Diffbrems,0) -> 0
G25: Endret slagvolum | J25: =OrgSlagvolum -> 2000 | K25: ccm
M26: Tillegg | P26: + | Q26: =SUM(Q27:Q29) -> 0
G27: Ettermontert turbo / kompressor | M27: Dekk bredere enn grunnbredde | P27: + | Q27: =IF(DekkbreddeValgt>0,DekkbreddeValgt,0) -> 0
M28: ABS | P28: + | Q28: =IF(ABSValgt=TRUE,ABS,0) -> 0
G29: =INDEX(Konfigurasjon!$C$33:$I$38,OrgMotorType,1) -> Beholdt orginaloppsett | M29: Uorginal bakspoiler / vinge | P29: + | Q29: =IF(BakspoilerValgt=TRUE,Bakspoiler,0) -> 0
G30: =INDEX(Konfigurasjon!$C$33:$I$38,OrgMotorType,2) -> Trimchip / Uorginalt innsprut / Større halsringer
A31: Kontrollert: | G31: =INDEX(Konfigurasjon!$C$33:$I$38,OrgMotorType,3) -> Større gass-spjell / Større forgassere
G32: =INDEX(Konfigurasjon!$C$33:$I$38,OrgMotorType,4) -> 1 gass-spjell per sylinder
M33: Utregnet konkurranse-effekt | P33: =UtregnetGrunneffekt*(1+Avdrag)*(1+Tillegg) -> 130 | Q33: hk
B34: Dato og sted | G34: =INDEX(Konfigurasjon!$C$33:$I$38,OrgMotorType,7) ->  | M34: Utregnet vekt/effekt | P34: =Vekt/UtregnetKonkurranseEffekt -> 7.692307692 | Q34: kg/hk
M36: Klassetillhørighet | Q36: =IF(VektEffekt<_KL1,"Ingen",IF(VektEffekt<_KL2,1,IF(VektEffekt<_KL3,2,IF(BenyttetSlagvolum>1320,3,"MilleTreCento")))) -> 3
B37: Underskrift - Teknisk kontrollør
A39: Alle felt med denne bakgrunnsfargen kan endres
A40: En rød trekant betyr at utvidet informasjon gis om man holder musepekeren over denne

Sheet Konfigurasjon (hidden)
G2: TILLEGG / FRATREKK %
B3: Klasseindeling 2016 - vekt med sjåfør | G3: Kammer / ventiler | H3: 0.15 | I3: E85 NA | J3: 0.05
B4: Klasse 1 | C4: 2.5 | D4: =C5-0.01 -> 4.74 | E4: kg/hk | G4: Endret kompresjon | H4: 0.1 | I4: E85 Turbo | J4: 0.15
B5: Klasse 2 | C5: 4.75 | D5: =C6-0.01 -> 6.99 | E5: kg/hk | G5: Uorginal eksosmanifold | H5: 0.05 | I5: Racefuel NA | J5: 0.03
B6: Klasse 3 | C6: 7 | D6: =C7-0.01 -> 6.99 | E6: kg/hk | G6: Omprogrammert tenning | H6: 0.05 | I6: Racefuel Turbo | J6: 0.15
B7: CMT | C7: 7 | D7: & tyngre | E7: kg/hk | G7: Uorginal turbo | H7: 0.3 | I7: Diesel faktor 2v per syl | J7: 2
G8: Ombygget intercooler | H8: 0.2 | I8: Diesel faktor 4v per syl | J8: 2
G9: Ikke diffbrems/sperre | H9: -0.1
G10: Dekkbredde per 10mm | H10: 0.02
B11: Trimmet motor, grunneffekt per liter (hk/l) | G11: ABS | H11: 0.05
B12: Type motor (TypeMotorMod) | C12: 2 VENTILER, 1 TENNPLUGG / SYL | D12: 2 VENTILER, 2 TENNPLUGGER / SYL | E12: 4 VENTILER / SYL | G12: Bakspoiler, uoriginal | H12: 0.075
B13: 1 spjell/2 syl | C13: 85 | D13: 85 | E13: 105 | G13: Frontspoiler, uoriginal | H13: 0.05
B14: 1 spjell/syl | C14: 95 | D14: 95 | E14: 120 | G14: R-dekk | H14: 0.05
B15: Turbo | C15: 145 | D15: 145 | E15: 185 | G15: Kat fjernet | H15: 0.05
B16: Forgasser Turbo/kompressor | C16: 145 | D16: 145 | E16: 185 | G16: Plenum endret NA | H16: 0.03
B17: Innsprut Turbo/kompressor | C17: 145 | D17: 145 | E17: 185 | G17: Plenum endret turbo | H17: 0.1
B21: Tillegg type motor (%)
C22: Valg 1 | D22: Valg 2 | E22: Valg 3 | F22: Valg 4 | G22: Valg 5 | H22: Valg 6 | I22: Valg 7
B23: 1 spjell/2 syl | C23: 0 | D23: 0.075 | E23: 0.2 | F23: 0.2
B24: 1 spjell/syl | C24: 0 | D24: 0.075 | E24: 0.2
B25: Turbo | C25: 0 | D25: 0.25 | E25: 0.3 | F25: 0.5
B26: Forgasser turbo | C26: 0 | D26: 0.25 | E26: 0.3 | F26: 0.5
B27: Injection turbo | C27: 0 | D27: 0.25 | E27: 0.5 | F27: 0.3
B28: Injection 1 spjell/syl | C28: 0 | D28: 0.05 | E28: 0.15 | F28: 0.15 | G28: 0.3 | H28: 0.3
B31: Tillegg type motor tekst
C32: Valg 1 | D32: Valg 2 | E32: Valg 3 | F32: Valg 4 | G32: Valg 5 | H32: Valg 6 | I32: Valg 7 | J32: Beskrivelse
B33: 1 spjell/2 syl | C33: Beholdt orginaloppsett | D33: Trimchip / Uorginalt innsprut / Større halsringer | E33: Større gass-spjell / Større forgassere | F33: 1 gass-spjell per sylinder | J33: Orginalt har motoren ikke 1 spjell per syl
B34: 1 spjell/syl | C34: Beholdt orginaloppsett | D34: Trimchip / Uorginalt innsprut / Større halsringer | E34: Større spjellhus / Større forgassere | J34: Orginalt har motoren 1 spjell per syl
B35: Turbo | C35: Beholdt orginaloppsett | D35: Trimchip / Endret turbotrykk | E35: Større forgassere / Byttet fra innsprut til forgasser | F35: Uorginalt innsprut | J35: Orginalt har motoren innsprut
B36: Forgasser turbo | C36: Beholdt orginaloppsett | D36: Orginale forgassere, endret turbotrykk | E36: Endret forgassere, endret turbotrykk | F36: Endret til innsprut | J36: Orginalt har turbomotoren forgasser
B37: Injection turbo | C37: Beholdt orginaloppsett | D37: Orginal innsprut med trimchip og/eller endret turbotrykk | E37: Endret til uorginal innsprut | F37: Endret til forgasser + evt endret turbotrykk | J37: Orginalt har turbomotoren innsprut
B38: Injection NA 1 spjell/syl | C38: Beholdt orginaloppsett | D38: Orginal innsprut med trimchip | E38: Orginal med trimchip + øket størrelse på spjellhus | F38: Endret til uorginal innsprut + org størrelse på spjellhus | G38: Endret til uorginal innsprut + øket størrelse på spjellhus | H38: Endret til forgasser med 1 spjell per sylinder | J38: Orginalt har motoren innsprut med 1 spjell per syl
B40: TypeMotorMod etter valgt endring
C41: Valg 1 | D41: Valg 2 | E41: Valg 3 | F41: Valg 4 | G41: Valg 5 | H41: Valg 6 | I41: Valg 7
B42: 1 spjell/2 syl | C42: 1 | D42: 1 | E42: 1 | F42: 2
B43: 1 spjell/syl | C43: 2 | D43: 2 | E43: 2
B44: Turbo | C44: 3 | D44: 3 | E44: 3 | F44: 3
B45: Forgasser turbo | C45: 4 | D45: 4 | E45: 4 | F45: 5
B46: Injection turbo | C46: 5 | D46: 5 | E46: 5 | F46: 4
B47: Injection NA 1 spjell/syl | C47: 6 | D47: 6 | E47: 6 | F47: 6 | G47: 6 | H47: 2
B50: "Omprogrammert tenning" tilgjengelig
C51: Valg 1 | D51: Valg 2 | E51: Valg 3 | F51: Valg 4 | G51: Valg 5 | H51: Valg 6 | I51: Valg 7
B52: 1 spjell/2 syl | C52: x | D52: x | E52: x | F52: x
B53: 1 spjell/syl | C53: x | D53: x | E53: x
B54: Turo | C54: x | G54: x | H54: x
B55: Forgasser turbo | C55: x | D55: x | E55: x
B56: Injection turbo | F56: x
B57: Injection NA 1 spjell/syl | C57: x | G57: x | H57: x
B60: Plenum - endret volum" tilgjengelig
C61: Valg 1 | D61: Valg 2 | E61: Valg 3 | F61: Valg 4 | G61: Valg 5 | H61: Valg 6 | I61: Valg 7
B62: 1 spjell/2 syl | C62: 1 | D62: 1 | E62: 1
B63: 1 spjell/syl
B64: Turbo | C64: 2 | D64: 2 | F64: 2
B65: Forgasser turbo
B66: Injection turbo | C66: 2 | D66: 2 | E66: 2
B67: Injection NA 1 spjell/syl

Sheet Konfigurasjon2012 (hidden)
G2: TILLEGG / FRATREKK %
B3: Klasseindeling 2009 - vekt med sjåfør | G3: Kammer / ventiler | H3: 0.15
B4: Klasse 1 | C4: 2.25 | D4: =C5-0.01 -> 4.24 | E4: kg/hk | G4: Endret kompresjon | H4: 0.1
B5: Klasse 2 | C5: 4.25 | D5: =C6-0.01 -> 5.59 | E5: kg/hk | G5: Uorginal eksosmanifold | H5: 0.05
B6: Klasse 3 | C6: 5.6 | D6: =C7-0.01 -> 6.99 | E6: kg/hk | G6: Omprogrammert tenning | H6: 0.05
B7: Klasse 4 | C7: 7 | D7: & tyngre | E7: kg/hk | G7: Uorginal turbo | H7: 0.3
G8: Ombygget intercooler | H8: 0.2
G9: Ikke diffbrems/sperre | H9: -0.1
G10: Dekkbredde per 10mm | H10: 0.02
B11: Trimmet motor, grunneffekt per liter (hk/l) | G11: ABS | H11: 0.05
C12: 2 VENTILER, 1 TENNPLUGG / SYL | D12: 2 VENTILER, 2 TENNPLUGGER / SYL | E12: 4 VENTILER / SYL | G12: Bakspoiler, uoriginal | H12: 0.075
B13: Forgasser 1 spjell/2 syl | C13: 85 | D13: 90 | E13: 110 | G13: Frontspoiler, uoriginal | H13: 0.05
B14: Forgasser 1 spjell/syl | C14: 85 | D14: 90 | E14: 110 | G14: R-dekk | H14: 0.05
B15: Injection | C15: 95 | D15: 100 | E15: 120 | G15: Kat fjernet | H15: 0.05
B16: Turbo/kompressor | C16: 145 | D16: 150 | E16: 185 | G16: Plenum endret NA | H16: 0.03
G17: Plenum endret turbo | H17: 0.1
B21: Tillegg type motor (%)
C22: Valg 1 | D22: Valg 2 | E22: Valg 3 | F22: Valg 4 | G22: Valg 5 | H22: Valg 6 | I22: Valg 7
B23: Forgasser 1 spjell/2 syl | C23: 0 | D23: 0.05 | E23: 0.1 | F23: 0.2 | G23: 0.1 | H23: 0.2
B24: Forgasser 1 spjell/syl | C24: 0 | D24: 0.05 | E24: 0.1 | F24: 0.1 | G24: 0.2
B25: Injection | C25: 0 | D25: 0.05 | E25: 0.05 | F25: 0.2 | G25: 0 | H25: 0.1
B26: Forgasser turbo | C26: 0 | D26: 0.25 | E26: 0.3 | F26: 0.5
B27: Injection turbo | C27: 0 | D27: 0.25 | E27: 0.5 | F27: 0.3
B28: Injection NA 1 spjell/syl | C28: 0 | D28: 0.05 | E28: 0.15 | F28: 0.15 | G28: 0.3 | H28: 0.1 | I28: 0.2
B29: Injection 4v | C29: 0 | D29: 0.05 | E29: 0.05 | F29: 0.3 | G29: 0.1 | H29: 0.1
B30: Injection 4v 1 spjell per syl | C30: 0 | D30: 0.05 | E30: 0.15 | F30: 0.15 | G30: 0.3 | H30: 0.1 | I30: 0.1
B31: Tillegg type motor tekst
C32: Valg 1 | D32: Valg 2 | E32: Valg 3 | F32: Valg 4 | G32: Valg 5 | H32: Valg 6 | I32: Valg 7 | J32: Beskrivelse
B33: Forgasser 1 spjell/2 syl | C33: Beholdt orginaloppsett | D33: Orginale forgassere med større halsringer | E33: Endret størrelse på forgasserne | F33: Endret forgasseroppsett til 1 spjell per sylinder | G33: Endret til innsprut | H33: Endret til innsprut med 1 spjell per sylinder | I33: N/A | J33: Orginalt har motoren forgasser med 1 spjell per 2 syl
B34: Forgasser 1 spjell/syl | C34: Beholdt orginaloppsett | D34: Orginale forgassere med større halsringer | E34: Endret størrelse på forgasserne | F34: Endret til innsprut | G34: Endret til innsprut med 1 spjell per sylinder | H34: N/A | I34: N/A | J34: Orginalt har motoren forgasser med 1 spjell per syl
B35: Injection | C35: Beholdt orginaloppsett | D35: Orginal innsprut med trimchip | E35: Endret til uorginal innsprut | F35: Endret til uorginal innsprut med 1 spjell per sylinder | G35: Endret til forgasser med 1 spjell per 2 sylindre | H35: Endret til forgasser med 1 spjell per sylinder | I35: N/A | J35: Orginalt har motoren innsprut
B36: Forgasser turbo | C36: Beholdt orginaloppsett | D36: Orginale forgassere, endret turbotrykk | E36: Endret forgassere, endret turbotrykk | F36: Endret til innsprut | G36: N/A | H36: N/A | I36: N/A | J36: Orginalt har turbomotoren forgasser
B37: Injection turbo | C37: Beholdt orginaloppsett | D37: Orginal innsprut med trimchip og/eller endret turbotrykk | E37: Endret til uorginal innsprut | F37: Endret til forgasser + evt endret turbotrykk | G37: N/A | H37: N/A | I37: N/A | J37: Orginalt har turbomotoren innsprut
B38: Injection NA 1 spjell/syl | C38: Beholdt orginaloppsett | D38: Orginal innsprut med trimchip | E38: Orginal innsprut med trimchip + øket størrelse på spjellhus | F38: Endret til uorginal innsprut | G38: Endret til uorginal innsprut + øket størrelse på spjellhus | H38: Endret til forgasser med 1 spjell per 2 sylindre | I38: Endret til forgasser med 1 spjell per sylinder | J38: Orginalt har motoren innsprut med 1 spjell per syl
B40: Type motor etter valgt endring
C41: Valg 1 | D41: Valg 2 | E41: Valg 3 | F41: Valg 4 | G41: Valg 5 | H41: Valg 6 | I41: Valg 7
B42: Forgasser 1 spjell/2 syl | C42: 1 | D42: 1 | E42: 1 | F42: 2 | G42: 3 | H42: 3
B43: Forgasser 1 spjell/syl | C43: 2 | D43: 2 | E43: 2 | F43: 3 | G43: 3
B44: Injection | C44: 3 | D44: 3 | E44: 3 | F44: 3 | G44: 1 | H44: 2
B45: Forgasser turbo | C45: 4 | D45: 4 | E45: 4 | F45: 4
B46: Injection turbo | C46: 4 | D46: 4 | E46: 4 | F46: 4
B47: Injection NA 1 spjell/syl | C47: 3 | D47: 3 | E47: 3 | F47: 3 | G47: 3 | H47: 1 | I47: 2
B50: "Omprogrammert tenning" tilgjengelig
C51: Valg 1 | D51: Valg 2 | E51: Valg 3 | F51: Valg 4 | G51: Valg 5 | H51: Valg 6 | I51: Valg 7
B52: Forgasser 1 spjell/2 syl | C52: x | D52: x | E52: x | F52: x
B53: Forgasser 1 spjell/syl | C53: x | D53: x | E53: x
B54: Injection | C54: x | G54: x | H54: x
B55: Forgasser turbo | C55: x | D55: x | E55: x
B56: Injection turbo | F56: x
B57: Injection NA 1 spjell/syl | C57: x | H57: x | I57: x
B60: Plenum - endret volum" tilgjengelig
C61: Valg 1 | D61: Valg 2 | E61: Valg 3 | F61: Valg 4 | G61: Valg 5 | H61: Valg 6 | I61: Valg 7
B62: Forgasser 1 spjell/2 syl
B63: Forgasser 1 spjell/syl
B64: Injection | C64: 1 | D64: 1 | E64: 1
B65: Forgasser turbo
B66: Injection turbo | C66: 2 | D66: 2 | E66: 2
B67: Injection NA 1 spjell/syl

Sheet Konfigurasjon2013 (hidden)
G2: TILLEGG / FRATREKK %
B3: Klasseindeling 2009 - vekt med sjåfør | G3: Kammer / ventiler | H3: 0.15
B4: Klasse 1 | C4: 2.25 | D4: =C5-0.01 -> 4.24 | E4: kg/hk | G4: Endret kompresjon | H4: 0.1
B5: Klasse 2 | C5: 4.25 | D5: =C6-0.01 -> 5.59 | E5: kg/hk | G5: Uorginal eksosmanifold | H5: 0.05
B6: Klasse 3 | C6: 5.6 | D6: =C7-0.01 -> 6.99 | E6: kg/hk | G6: Omprogrammert tenning | H6: 0.05
B7: Klasse 4 | C7: 7 | D7: & tyngre | E7: kg/hk | G7: Uorginal turbo | H7: 0.3
G8: Ombygget intercooler | H8: 0.2
G9: Ikke diffbrems/sperre | H9: -0.1
G10: Dekkbredde per 10mm | H10: 0.02
B11: Trimmet motor, grunneffekt per liter (hk/l) | G11: ABS | H11: 0.05
C12: 2 VENTILER, 1 TENNPLUGG / SYL | D12: 2 VENTILER, 2 TENNPLUGGER / SYL | E12: 4 VENTILER / SYL | G12: Bakspoiler, uoriginal | H12: 0.075
B13: Forgasser 1 spjell/2 syl | C13: 80 | D13: 85 | E13: 105 | G13: Frontspoiler, uoriginal | H13: 0.05
B14: Forgasser 1 spjell/syl | C14: 95 | D14: 100 | E14: 120 | G14: R-dekk | H14: 0.05
B15: Injection 1spjell/syl | C15: 95 | D15: 100 | E15: 120 | G15: Kat fjernet | H15: 0.05
B16: Turbo/kompressor | C16: 145 | D16: 150 | E16: 185 | G16: Plenum endret NA | H16: 0.03
B17: Injection 1spjell/2 syl | C17: 80 | D17: 85 | E17: 105 | G17: Plenum endret turbo | H17: 0.1
B21: Tillegg type motor (%)
C22: Valg 1 | D22: Valg 2 | E22: Valg 3 | F22: Valg 4 | G22: Valg 5 | H22: Valg 6 | I22: Valg 7
B23: Forgasser 1 spjell/2 syl | C23: 0 | D23: 0.05 | E23: 0.1 | F23: 0.2 | G23: 0.1 | H23: 0.2
B24: Forgasser 1 spjell/syl | C24: 0 | D24: 0.05 | E24: 0.2 | F24: 0.2
B25: Injection | C25: 0 | D25: 0.05 | E25: 0.05 | F25: 0.2 | G25: 0.05 | H25: 0.2
B26: Forgasser turbo | C26: 0 | D26: 0.25 | E26: 0.3 | F26: 0.5
B27: Injection turbo | C27: 0 | D27: 0.25 | E27: 0.5 | F27: 0.3
B28: Injection NA 1 spjell/syl | C28: 0 | D28: 0.05 | E28: 0.15 | F28: 0.15 | G28: 0.3 | H28: 0.1 | I28: 0.2
B29: Injection 4v | C29: 0 | D29: 0.05 | E29: 0.05 | F29: 0.3 | G29: 0.1 | H29: 0.1
B30: Injection 4v 1 spjell per syl | C30: 0 | D30: 0.05 | E30: 0.15 | F30: 0.15 | G30: 0.3 | H30: 0.1 | I30: 0.1
B31: Tillegg type motor tekst
C32: Valg 1 | D32: Valg 2 | E32: Valg 3 | F32: Valg 4 | G32: Valg 5 | H32: Valg 6 | I32: Valg 7 | J32: Beskrivelse
B33: Forgasser 1 spjell/2 syl | C33: Beholdt orginaloppsett | D33: Orginale forgassere med større halsringer | E33: Endret størrelse på forgasserne | F33: Endret forgasseroppsett til 1 spjell per sylinder | G33: Endret til innsprut | H33: Endret til innsprut med 1 spjell per sylinder | I33: N/A | J33: Orginalt har motoren forgasser med 1 spjell per 2 syl
B34: Forgasser 1 spjell/syl | C34: Beholdt orginaloppsett | D34: Orginale forgassere med større halsringer | E34: Endret størrelse på forgasserne | F34: Endret til innsprut med 1 spjell per sylinder | G34: N/A | H34: N/A | I34: N/A | J34: Orginalt har motoren forgasser med 1 spjell per syl
B35: Injection | C35: Beholdt orginaloppsett | D35: Orginal innsprut med trimchip | E35: Endret til uorginal innsprut | F35: Endret til uorginal innsprut med 1 spjell per sylinder | G35: Endret til forgasser med 1 spjell per 2 sylindre | H35: Endret til forgasser med 1 spjell per sylinder | I35: N/A | J35: Orginalt har motoren innsprut
B36: Forgasser turbo | C36: Beholdt orginaloppsett | D36: Orginale forgassere, endret turbotrykk | E36: Endret forgassere, endret turbotrykk | F36: Endret til innsprut | G36: N/A | H36: N/A | I36: N/A | J36: Orginalt har turbomotoren forgasser
B37: Injection turbo | C37: Beholdt orginaloppsett | D37: Orginal innsprut med trimchip og/eller endret turbotrykk | E37: Endret til uorginal innsprut | F37: Endret til forgasser + evt endret turbotrykk | G37: N/A | H37: N/A | I37: N/A | J37: Orginalt har turbomotoren innsprut
B38: Injection NA 1 spjell/syl | C38: Beholdt orginaloppsett | D38: Orginal innsprut med trimchip | E38: Orginal innsprut med trimchip + øket størrelse på spjellhus | F38: Endret til uorginal innsprut | G38: Endret til uorginal innsprut + øket størrelse på spjellhus | H38: Endret til forgasser med 1 spjell per 2 sylindre | I38: Endret til forgasser med 1 spjell per sylinder | J38: Orginalt har motoren innsprut med 1 spjell per syl
B40: Type motor etter valgt endring
C41: Valg 1 | D41: Valg 2 | E41: Valg 3 | F41: Valg 4 | G41: Valg 5 | H41: Valg 6 | I41: Valg 7
B42: Forgasser 1 spjell/2 syl | C42: 1 | D42: 1 | E42: 1 | F42: 2 | G42: 3 | H42: 3
B43: Forgasser 1 spjell/syl | C43: 2 | D43: 2 | E43: 2 | F43: 3
B44: Injection | C44: 3 | D44: 3 | E44: 3 | F44: 3 | G44: 1 | H44: 2
B45: Forgasser turbo | C45: 4 | D45: 4 | E45: 4 | F45: 4
B46: Injection turbo | C46: 4 | D46: 4 | E46: 4 | F46: 4
B47: Injection NA 1 spjell/syl | C47: 3 | D47: 3 | E47: 3 | F47: 3 | G47: 3 | H47: 1 | I47: 2
B50: "Omprogrammert tenning" tilgjengelig
C51: Valg 1 | D51: Valg 2 | E51: Valg 3 | F51: Valg 4 | G51: Valg 5 | H51: Valg 6 | I51: Valg 7
B52: Forgasser 1 spjell/2 syl | C52: x | D52: x | E52: x | F52: x
B53: Forgasser 1 spjell/syl | C53: x | D53: x | E53: x
B54: Injection | C54: x | G54: x | H54: x
B55: Forgasser turbo | C55: x | D55: x | E55: x
B56: Injection turbo | F56: x
B57: Injection NA 1 spjell/syl | C57: x | H57: x | I57: x
B60: Plenum - endret volum" tilgjengelig
C61: Valg 1 | D61: Valg 2 | E61: Valg 3 | F61: Valg 4 | G61: Valg 5 | H61: Valg 6 | I61: Valg 7
B62: Forgasser 1 spjell/2 syl
B63: Forgasser 1 spjell/syl
B64: Injection | C64: 1 | D64: 1 | E64: 1
B65: Forgasser turbo
B66: Injection turbo | C66: 2 | D66: 2 | E66: 2
B67: Injection NA 1 spjell/syl

Sheet Temp (hidden)
F1: 165 | H1: TILLEGG / FRATREKK | K1: MAX TILLEGG MOTOR | N1: MAX TILLEGG MOTOR 2
F2: 175 | H2: Kammer / ventiler | I2: FALSE | K2: =Kammer -> 0.15 | L2: =1+$K2 -> 1.15 | M2: Kammer | N2: =Kammer -> 0.15 | O2: =1+$K2 -> 1.15 | P2: Kammer | Q2: =COUNT(Temp!N2:N15)-COUNTIF(Temp!N2:N15,0) -> 6
F3: 185 | H3: Endret kompresjon | I3: FALSE | K3: =Kompresjon -> 0.1 | L3: =1+$K3 -> 1.1 | M3: Kompresjon | N3: =Kompresjon -> 0.1 | O3: =1+$K3 -> 1.1 | P3: Kompresjon | Q3: =(1+O18)/((1+N2)*(1+N3)*(1+N4)*(1+N13)*(1+N14)*(1+N15)) -> 0.7586089718
B4: 6 | C4: ValgtDekkbredde | F4: 195 | H4: Uorginal eksosmanifold | I4: FALSE | K4: =Eksosmanifold -> 0.05 | L4: 1.05 | M4: Eksosmanifold | N4: =Eksosmanifold -> 0.05 | O4: 1.05 | P4: Eksosmanifold | Q4: =POWER(Q3,1/Q2) -> 0.9549991736
B5: 1 | C5: MotorEndring | F5: 205 | H5: Omprogrammert tenning | I5: FALSE | L5: 1 | O5: 1 | Q5: =COUNT(Kalkulering!T4:T9)-COUNTIF(Kalkulering!T4:T9,0) -> 0
B6: =OrgMotorType -> 1 | C6: TypeMotor | F6: 215 | H6: Uorginal turbo | I6: FALSE | K6: =IF(OrgTurbo,UorgTurbo) -> FALSE | L6: 1 | M6: Uorg turbo | O6: 1 | P6: Uorg turbo | Q6: =(1+Kalkulering!U12)/((1+Kalkulering!T4)*(1+Kalkulering!T5)*(1+Kalkulering!T6)*(1+Kalkulering!T7)*(1+Kalkulering!T8)*(1+Kalkulering!T9)) -> 1
F7: 225 | H7: Ombygget intercooler | I7: FALSE | K7: =IF(OrgTurbo,Intercooler) -> FALSE | L7: 1 | M7: Intercooler | O7: 1 | P7: Intercooler | Q7: =POWER(Q6,1/Q5) -> 
B8: =IF(Org4Ventiler,3,1) -> 1 | C8: Ventiler | F8: 235 | H8: Ikke diffbrems/sperre | I8: FALSE | L8: 1 | O8: 1
B9: =IF(OrgTurbo,INDEX(Konfigurasjon!C42:I47,OrgMotorType,MotorEndring),IF(EttermontertTurbo,5,INDEX(Konfigurasjon!C42:I47,OrgMotorType,MotorEndring))) -> 1 | C9: TypeMotorMod | F9: 245 | H9: Dekkbredde | I9: =(ValgtDekkbredde_mm-Kalkulering!J7)*Dekkbredde/10 -> 0 | L9: 1 | O9: 1
B10: 1980 | C10: Produsert | F10: 255 | H10: ABS | I10: FALSE | L10: 1 | O10: 1
B11: =INDEX(Konfigurasjon!C62:I67,TypeMotor,MotorEndring) -> 1 | C11: Plenum | F11: 265 | H11: Bakspoiler, uoriginal | I11: FALSE | L11: 1 | O11: 1
F12: 275 | H12: Frontspoiler, uoriginal | I12: FALSE | L12: 1 | O12: 1
F13: 285 | H13: R-dekk | I13: FALSE | K13: =IF(TypeMotor=1,IF(TypeMotorMod=1,Konfigurasjon!E23,IF(TypeMotorMod=2,Konfigurasjon!F23)),IF(TypeMotor=2,IF(TypeMotorMod=2,Konfigurasjon!E24,),IF(TypeMotor=4,IF(TypeMotorMod=4,Konfigurasjon!E26,IF(TypeMotorMod=5,Konfigurasjon!F26)),IF(TypeMotor=5,IF(TypeMotorMod=5,Konfigurasjon!E27,IF(TypeMotorMod=4,Konfigurasjon!F27)))))) -> 0.2 | L13: 1.2 | N13: =K13 -> 0.2 | O13: =1+$N13 -> 1.2
F14: 295 | H14: Plenum endret | I14: FALSE | K14: =IF(Plenum=1,PlenumNA,IF(Plenum=2,PlenumTurbo,0)) -> 0.03 | L14: 1.03 | M14: Plenum | N14: =IF(Plenum=1,PlenumNA,IF(Plenum=2,PlenumTurbo,0)) -> 0.03 | O14: 1.03 | P14: Plenum
F15: 305 | H15: Kat fjernet | I15: FALSE | K15: =IF(OrgKat,KatFjernet,0) -> 0.05 | L15: 1.05 | M15: Kat fjernet | N15: =IF(OrgKat,KatFjernet,0) -> 0.05 | O15: 1.05 | P15: Kat fjernet
H16: E85 | I16: FALSE | K16: =SUM(K2:K15) -> 0.58 | L16: =PRODUCT(L2:L15) -> 1.72380285 | N16: =SUM(N2:N15) -> 0.58 | O16: =PRODUCT(O2:O15) -> 1.72380285
H17: Racefuel | I17: FALSE | L17: =L16-1 -> 0.72380285 | O17: =O16-1 -> 0.72380285
L18: =(GrenseGrunneffekt-Orginaleffekt*BenyttetSlagvolum/OrgSlagvolum)/Orginaleffekt -> 0.3076923077 | O18: =(MaksGrunneffekt-Orginaleffekt*BenyttetSlagvolum/OrgSlagvolum)/(Orginaleffekt*BenyttetSlagvolum/OrgSlagvolum) -> 0.3076923077
H21: Ettermontert turbo | I21: FALSE | N21: Forg 1/2 | O21: =IF(TypeMotor=1,IF(TypeMotorMod=1,Konfigurasjon!E23,IF(TypeMotorMod=2,Konfigurasjon!F23,IF(TypeMotorMod=3,Konfigurasjon!G23,IF(TypeMotorMod=5,Konfigurasjon!H23))))) -> 0.2
H22: Beregnet grunneffekt | I22: =IF(OrgTurbo="Ja",Orginaleffekt*BenyttetSlagvolum*(1+TilleggTrimmet)/OrgSlagvolum,IF(EttermontertTurbo=TRUE,MaksGrunneffekt,Orginaleffekt*BenyttetSlagvolum*(1+TilleggTrimmet)/OrgSlagvolum)) -> 130 | J22: =Orginaleffekt/OrgSlagvolum*1000 -> 65 | N22: Forg 1/1 | O22: =IF(TypeMotor=2,IF(TypeMotorMod=2,Konfigurasjon!E24,IF(TypeMotorMod=5,Konfigurasjon!F24))) -> FALSE
H23: Maks grunneffekt | I23: =EffektPerLiter*BenyttetSlagvolum/1000 -> 170 | J23: =IF(OrgLitereffekt*BenyttetSlagvolum/1000*1.2>J24*BenyttetSlagvolum/1000,OrgLitereffekt*BenyttetSlagvolum/1000*1.2,J24*BenyttetSlagvolum/1000) -> 170 | L23: =(Dekkbredde*((10*ValgtDekkbredde_mm)-1150)+100*(1+Tillegg-Kalkulering!$Q$27+Kalkulering!$Q$23+(Tillegg-Kalkulering!$Q$27)*Kalkulering!$Q$23)/(1+Kalkulering!$Q$23)) -> 120 | M23: =(Dekkbredde+100*((_KL1*UtregnetGrunneffekt*(1+Kalkulering!$Q$23)))) -> 32500.02 | N23: Innsprut | O23: =IF(TypeMotor=3,IF(TypeMotorMod=3,IF(Ventiler=3,Konfigurasjon!E29,Konfigurasjon!E25),IF(TypeMotorMod=5,IF(Ventiler=3,Konfigurasjon!F29,Konfigurasjon!F25),IF(TypeMotorMod=2,IF(Ventiler=3,Konfigurasjon!H29,Konfigurasjon!H25),IF(TypeMotorMod=1,Konfigurasjon!G25,0))))) -> FALSE
H24: Maks effekt/liter | I24: =INDEX(Konfigurasjon!C13:E18,TypeMotorMod,Ventiler) -> 85 | J24: =INDEX(Konfigurasjon!C13:E18,TypeMotorMod,Ventiler) -> 85 | N24: Innsprut 1/1 | O24: =IF(TypeMotor=6,IF(TypeMotorMod=3,Konfigurasjon!G30,IF(TypeMotorMod=2,Konfigurasjon!I30,IF(TypeMotorMod=1,Konfigurasjon!H30,0)))) -> FALSE
H25: Valgt dekkbredde | I25: =INDEX(F1:F15,ValgtDekkbredde,1) -> 215
J26: Fratrekk dekk | K26: Tillegg dekk
H27: Min vekt kl 1 | I27: =IF((165+((K27-500)/10))<ValgtDekkbredde_mm,K27,J27) -> 366.1971831 | J27: =(Dekkbredde*((10*ValgtDekkbredde_mm)-1150)+100*(1+Tillegg-Kalkulering!$Q$27+Kalkulering!$Q$23+(Tillegg-Kalkulering!$Q$27)*Kalkulering!$Q$23)/(1+(Tillegg-Kalkulering!$Q$27)))/(Dekkbredde+100/((_KL1*UtregnetGrunneffekt*(1+(Tillegg-Kalkulering!$Q$27))))) -> 366.1971831 | K27: =(Dekkbredde*((10*ValgtDekkbredde_mm)-1150)+100*(1+Tillegg-Kalkulering!$Q$27+Kalkulering!$Q$23+(Tillegg-Kalkulering!$Q$27)*Kalkulering!$Q$23)/(1+Kalkulering!$Q$23))/(Dekkbredde+100/((_KL1*UtregnetGrunneffekt*(1+Kalkulering!$Q$23)))) -> 366.1971831
H28: Min vekt kl 2 | I28: =IF((165+((K28-500)/10))<ValgtDekkbredde_mm,K28,J28) -> 659.5460614 | J28: =(Dekkbredde*((10*ValgtDekkbredde_mm)-1150)+100*(1+Tillegg-Kalkulering!$Q$27+Kalkulering!$Q$23+(Tillegg-Kalkulering!$Q$27)*Kalkulering!$Q$23)/(1+(Tillegg-Kalkulering!$Q$27)))/(Dekkbredde+100/((_KL2*UtregnetGrunneffekt*(1+(Tillegg-Kalkulering!$Q$27))))) -> 659.5460614 | K28: =(Dekkbredde*((10*ValgtDekkbredde_mm)-1150)+100*(1+Tillegg-Kalkulering!$Q$27+Kalkulering!$Q$23+(Tillegg-Kalkulering!$Q$27)*Kalkulering!$Q$23)/(1+Kalkulering!$Q$23))/(Dekkbredde+100/((_KL2*UtregnetGrunneffekt*(1+Kalkulering!$Q$23)))) -> 659.5460614
H29: Min vekt kl 3 | I29: =IF((165+((K29-500)/10))<ValgtDekkbredde_mm,K29,J29) -> 923.857868 | J29: =(Dekkbredde*((10*ValgtDekkbredde_mm)-1150)+100*(1+Tillegg-Kalkulering!$Q$27+Kalkulering!$Q$23+(Tillegg-Kalkulering!$Q$27)*Kalkulering!$Q$23)/(1+(Tillegg-Kalkulering!$Q$27)))/(Dekkbredde+100/((_KL3*UtregnetGrunneffekt*(1+(Tillegg-Kalkulering!$Q$27))))) -> 923.857868 | K29: =(Dekkbredde*((10*ValgtDekkbredde_mm)-1150)+100*(1+Tillegg-Kalkulering!$Q$27+Kalkulering!$Q$23+(Tillegg-Kalkulering!$Q$27)*Kalkulering!$Q$23)/(1+Kalkulering!$Q$23))/(Dekkbredde+100/((_KL3*UtregnetGrunneffekt*(1+Kalkulering!$Q$23)))) -> 923.857868
H30: Min vekt kl 4 | I30: =IF((165+((K30-500)/10))<ValgtDekkbredde_mm,K30,J30) -> 923.857868 | J30: =(Dekkbredde*((10*ValgtDekkbredde_mm)-1150)+100*(1+Tillegg-Kalkulering!$Q$27+Kalkulering!$Q$23+(Tillegg-Kalkulering!$Q$27)*Kalkulering!$Q$23)/(1+(Tillegg-Kalkulering!$Q$27)))/(Dekkbredde+100/((_KL4*UtregnetGrunneffekt*(1+(Tillegg-Kalkulering!$Q$27))))) -> 923.857868 | K30: =(Dekkbredde*((10*ValgtDekkbredde_mm)-1150)+100*(1+Tillegg-Kalkulering!$Q$27+Kalkulering!$Q$23+(Tillegg-Kalkulering!$Q$27)*Kalkulering!$Q$23)/(1+Kalkulering!$Q$23))/(Dekkbredde+100/((_KL4*UtregnetGrunneffekt*(1+Kalkulering!$Q$23)))) -> 923.857868
H32: Orginal motor
H33: 1 gasspjell per sylinder | I33: FALSE
H34: 4 ventiler per sylinder | I34: FALSE | L34: 1 | M34: Forgasser 1 spjell/2 syl
H35: Kat orginalt | I35: TRUE | L35: =L34+1 -> 2 | M35: Forgasser 1 spjell/syl
H36: Turbo / kompressor | I36: FALSE | L36: =L35+1 -> 3 | M36: Injection
H37: OrgMotorType | I37: =IF(OrgTurbo,3,IF(OrgSpjell,2,1)) -> 1 | L37: 4 | M37: Forgasser turbo
H38: Diesel | I38: FALSE | L38: 5 | M38: Injection turbo
L39: 6 | M39: Injection NA 1 spjell/syl
L40: 7 | M40: Injection 4v
L41: 8 | M41: Injection 4v 1 spjell per syl
H42: Turbomotor | I42: =IF(OrgTurbo,TRUE,IF(EttermontertTurbo,TRUE,FALSE)) -> FALSE
H43: Endret slagvolum | I43: FALSE
